Cogmind - Beta 15 @@@ ROGUE MODE // 2025.10.16 @ 21:06:57 Player: Murmillo Result: Destroyed by P-60 Hacker with Shock Rifle Performance ------------- Evolutions (4) 2000 Regions Visited (5) 1000 Robots Destroyed (55) 275 Value Destroyed (2038) 2038 Prototype IDs (1) 20 Alien Tech Used (0) 0 Bonus (93) 93 TOTAL SCORE: 5426 Bonus ------- High Alert Combat Kills 93 Cogmind --------- Core Integrity 0/850 Matter 29/300 Energy 99/100 System Corruption 3% Temperature Cool (0) Movement Core (50) Location -6/Factory Parts ------- > --- POWER (1) -------- (None) > --- PROPULSION (5) --- (None) > --- UTILITY (7) ------ (None) > --- WEAPON (2) ------- (None) > --- INVENTORY (5) ---- Light Ion Engine Light Ion Engine Wheel Heavy Rocket Launcher Heavy Rocket Launcher Peak State ------------ > --- POWER ------------ Light Angular Momentum Engine > --- PROPULSION ------- Medium Treads Medium Treads > --- UTILITY ---------- Small Storage Unit Large Storage Unit Improved Signal Interpreter Advanced Signal Interpreter Transport Network Coupler Advanced ECM Suite Improved Medium Armor Plating > --- WEAPON ----------- Gauss Cannon Heavy Rocket Launcher > --- INVENTORY -------- Light Ion Engine Light Ion Engine Remote Force Field Subdweller Shrapnel Launcher Heavy Rocket Launcher Heavy Rocket Launcher Heavy Rocket Launcher Scrap Shield Fragment [Rating: 42] Favorites ----------- Power Light Ion Engine Engine Light Ion Engine Power Core Nuclear Core Propulsion Light Treads Treads Light Treads Leg Aluminum Leg Utility Small Storage Unit Device Advanced ECM Suite Storage Small Storage Unit Processor Improved Signal Interpreter Hackware Hacking Suite Protection Improved Medium Armor Plating Weapon Heavy Rocket Launcher Ballistic Gun Gauss Rifle Ballistic Cannon Light Cannon Launcher Heavy Rocket Launcher Build | -11 -10 -10 -8 -7 -6 ------- Run | Yrd Mat Sub Mat Fac Fac Slots Evolved 8 | . . . 4 2 2 Power . | . . . . . . Propulsion 3 | . . . 2 1 . Utility 5 | . . . 2 1 2 Weapon . | . . . . . . Parts Attached 30 | 5 1 . 7 9 8 Power 4 | 1 . . 1 . 2 Engine 2 | 1 . . . . 1 Core 2 | . . . 1 . 1 Reactor . | . . . . . . Propulsion 10 | 2 . . 1 7 . Treads 5 | 2 . . 1 2 . Leg 5 | . . . . 5 . Wheel . | . . . . . . Hover . | . . . . . . Flight . | . . . . . . Utility 8 | 1 . . 3 . 4 Device 1 | . . . . . 1 Storage 2 | 1 . . 1 . . Processor 3 | . . . 1 . 2 Hackware 1 | . . . 1 . . Protection 1 | . . . . . 1 Artifact . | . . . . . . Weapon 8 | 1 1 . 2 2 2 Energy Gun . | . . . . . . Energy Cannon . | . . . . . . Ballistic Gun 2 | 1 . . 1 . . Ballistic Cannon 3 | . 1 . 1 . 1 Launcher 3 | . . . . 2 1 Special Weapon . | . . . . . . Impact Weapon . | . . . . . . Slashing Weapon . | . . . . . . Piercing Weapon . | . . . . . . Special Melee Weapon . | . . . . . . Unidentified Prototypes 1 | . . . 1 . . Parts Lost 19 | . . . 7 5 7 Power 3 | . . . 1 . 2 Propulsion 8 | . . . 4 2 2 Utility 2 | . . . . 1 1 Weapon 6 | . . . 2 2 2 Highest Loss Streak 5 | . . . 2 5 3 To Critical Strikes . | . . . . . . Average Backups 7 | 2 3 3 10 10 6 Power 2 | . 1 1 1 3 2 Propulsion 1 | 2 2 2 2 . . Utility 1 | . . . 1 3 . Weapon 3 | . . . 4 3 3 Tool/Special . | . . . . . . Unused Backups 6 | . . . . . 6 Power 2 | . . . . . 2 Propulsion 1 | . . . . . 1 Utility 1 | . . . . . 1 Weapon 2 | . . . . . 2 Tool/Special . | . . . . . . Average Slot Usage (%) 66 | . 75 85 75 52 54 Engine 4 | . 14 14 2 . 2 Core 2 | . . . 5 . . Treads 12 | . 28 28 15 2 6 Leg 1 | . . . . 9 . Device 1 | . . . . . 5 Storage 14 | . 14 14 16 15 11 Processor 8 | . . . 8 7 14 Hackware 3 | . . . 8 1 . Ballistic Gun 6 | . 14 14 10 4 . Ballistic Cannon 5 | . 4 14 7 . 2 Launcher 3 | . . . . 10 5 Peak Build Rating 42 | 5 6 6 22 24 42 Average Rating 18 | 3 5 6 18 18 26 On Entrance 9 | . 5 6 6 16 24 Naked Turns 106 | . . . . . 106 Heaviest Build 58 | 9 12 12 40 39 58 Greatest Support 56 | 40 40 40 40 56 56 Greatest Overweight (x) 12 | 2 . . 12 12 11 Average Overweight (x) . | . . . . 1 1 Largest Inventory Capacity 15 | 8 8 8 15 15 15 Average Capacity 12 | 7 8 8 14 15 13 Most Carried 15 | 5 4 5 15 13 11 Average Carried 8 | 2 3 4 11 11 7 Final Capacity 15 | 8 8 8 15 15 5 Final Carried 14 | 3 3 5 14 12 5 Class Distribution -------------------- 100% | Mutant Dominant Class ---------------- Mutant | -10/Materials Mutant | -10/Subcaves Mutant | -8/Materials Mutant | -7/Factory Mutant | -6/Factory Resources | -11 -10 -10 -8 -7 -6 ----------- Run | Yrd Mat Sub Mat Fac Fac Matter Collected 1184 | 235 18 35 473 173 250 Remotely . | . . . . . . Salvage Created 1396 | . 15 . 583 462 336 Parts 79 | . 1 . 26 20 32 Haulers Intercepted 1 | . . . 1 . . Recyclers Shooed . | . . . . . . Parts Field Recycled . | . . . . . . Retrieved Matter . | . . . . . . Parts Self-Destructed . | . . . . . . Prevented . | . . . . . . Kills | -11 -10 -10 -8 -7 -6 ------- Run | Yrd Mat Sub Mat Fac Fac Combat Hostiles Destroyed 38 | . 1 . 14 13 10 Guns 11 | . . . 10 1 . Cannons 7 | . 1 . 4 . 2 AOE 20 | . . . . 12 8 Classes Destroyed 11 | . 1 . 7 2 1 Worker 8 | . . . 2 2 4 Builder 3 | . . . 1 . 2 Tunneler 1 | . . . . . 1 Hauler 1 | . . . 1 . . Recycler 2 | . . . . 1 1 Watcher 2 | . . . 2 . . Swarmer 10 | . . . 4 2 4 Grunt 20 | . 1 . 8 10 1 Protector 1 | . . . . 1 . Sentry 1 | . . . 1 . . Hunter 6 | . . . 1 . 5 Best Kill Streak 10 | . 1 . 6 8 10 Combat Bots Only 6 | . 1 . 5 6 6 Max Kills in Single Turn 4 | . 1 . 2 4 4 Gunslinging . | . . . . . . Exploded 3 | . . . . 3 2 Melee . | . . . . . . Uniques/NPCs Destroyed . | . . . . . . Combat | -11 -10 -10 -8 -7 -6 -------- Run | Yrd Mat Sub Mat Fac Fac Hostile Shots Fired 415 | . 11 1 121 66 216 Missed 136 | . 4 . 41 16 75 Hits 279 | . 7 1 80 50 141 Projectile 279 | . 7 1 80 50 141 Critical Strikes 5 | . . . 3 2 . Damage Taken 4154 | . 76 23 1246 775 2034 Core 1412 | . 11 23 327 195 856 Absorbed by Shields . | . . . . . . Core Remaining (%) 74 | 100 . 86 40 72 . Volleys Fired 120 | 3 10 . 55 19 33 Largest 2 | 1 2 . 2 2 1 Hottest 78 | 20 50 . 61 78 40 Shots Fired 199 | 3 19 . 108 36 33 Gun 90 | 3 10 . 55 22 . Cannon 81 | . 9 . 53 . 19 Launcher 28 | . . . . 14 14 Special . | . . . . . . Kinetic 171 | 3 19 . 108 22 19 Thermal . | . . . . . . Explosive 28 | . . . . 14 14 Electromagnetic . | . . . . . . Robot Hit Streak 9 | 1 4 . 9 5 4 Robot Miss Streak 4 | 1 2 . 4 4 3 Penetration Max 1 | . . . 1 . . Secondary Targets . | . . . . . . Shots Hit Robots 112 | 2 12 . 67 16 15 Core Hits 99 | 1 2 . 35 31 30 Critical Kills 1 | . . . 1 . . Critical Parts Destroyed . | . . . . . . Critical Strikes 2 | . . . 1 . 1 Destroy 1 | . . . 1 . . Blast 1 | . . . . . 1 Melee Attacks . | . . . . . . Impact . | . . . . . . Slashing . | . . . . . . Piercing . | . . . . . . Sneak Attacks . | . . . . . . Combat Hostiles . | . . . . . . Follow-up Attacks . | . . . . . . Damage Inflicted 5566 | 16 165 . 1673 1831 1881 Guns 1020 | 16 42 . 807 155 . Cannons 976 | . 119 . 578 . 279 Explosions 3559 | . . . 288 1669 1602 Melee . | . . . . . . Ramming 11 | . 4 . . 7 . Kinetic 1996 | 16 161 . 1385 155 279 Thermal 441 | . . . . 76 365 Explosive 3118 | . . . 288 1593 1237 Electromagnetic . | . . . . . . Impact . | . . . . . . Slashing . | . . . . . . Piercing . | . . . . . . Highest Corruption 2 | . . . . . 2 Average Corruption 1 | . . . . . 1 Corruption Purged . | . . . . . . Corruption Blocked . | . . . . . . Effects 2 | . . . . . 2 Message Errors 1 | . . . . . 1 Data Loss (minor) 1 | . . . . . 1 Overload Shots . | . . . . . . Overflow Damage 375 | . . . 11 113 251 Projectiles 18 | . . . . . 18 Explosions 357 | . . . 11 113 233 Melee . | . . . . . . Knockbacks 12 | . . . 7 . 5 Impact . | . . . . . . Kinetic 12 | . . . 7 . 5 Secondary . | . . . . . . Self-Inflicted Damage 221 | . . . 74 91 56 Shots 7 | . . . 1 3 3 Rammed 3 | . 3 . . . . Targets Rammed 4 | . 3 . . 1 . Kicked 1 | . . . . 1 . Crushed . | . . . . . . Highest Temperature 113 | . 26 . 113 26 . Average Temperature 37 | . 11 . 49 8 . Received Heat Transfer 1293 | . 42 . 603 399 249 Siege Activations . | . . . . . . Martial Activations . | . . . . . . Shielding Activations . | . . . . . . Robots Disrupted . | . . . . . . Combat Hostiles . | . . . . . . Robots Corrupted . | . . . . . . Combat Hostiles . | . . . . . . Parts Fried . | . . . . . . Impact Corruptions . | . . . . . . Robots Melted . | . . . . . . Combat Hostiles . | . . . . . . Parts Melted . | . . . . . . Heat Transferred 250 | . . . . 50 200 Parts Sabotaged . | . . . . . . Parts Stolen . | . . . . . . Parts Stripped . | . . . . . . Power Chain Reactions . | . . . . . . Alert | -11 -10 -10 -8 -7 -6 ------- Run | Yrd Mat Sub Mat Fac Fac Maximum Alert Level 2 | . . . . 2 2 Low Security (%) 68 | 100 100 . 100 30 40 Level 1 7 | . . . . 10 15 Level 2 24 | . . . . 58 43 Level 3 . | . . . . . . Level 4 . | . . . . . . Level 5 . | . . . . . . High Security . | . . . . . . Max Security . | . . . . . . Peak Influence 530 | . 30 . 161 518 530 Initial 249 | . . . . 42 249 Average 181 | . 4 . 73 305 304 Influence Increases 1920 | . 30 . 512 701 677 Destroy 0b10 Robot/C 740 | . 20 . 280 240 200 Destroy 0b10 Robot/NC 90 | . . . 30 20 40 Destroy Leader 186 | . 10 . 76 40 60 Trap Triggered on 0b10 20 | . . . 20 . . Successful Hack 36 | . . . 17 14 5 Disable Machine 345 | . . . 45 105 195 Anti-Garrison Action 150 | . . . . 150 . Destroy Structure 233 | . . . 29 132 72 Partial Spotted 15 | . . . . . 15 Lose Combat Pursuer 105 | . . . 15 . 90 Influence Decreases 1390 | . 30 . 419 284 657 Entered New Map 312 | . . . . 51 261 Time Decay 901 | . 30 . 349 196 326 Lost Part 177 | . . . 70 37 70 Squads Dispatched 18 | . 2 . 2 5 9 Investigation 4 | . . . 2 1 1 Extermination 1 | . . . . . 1 Reinforcement 4 | . 2 . . . 2 Assault 4 | . . . . 2 2 Garrison 5 | . . . . 2 3 Intercept . | . . . . . . Searches Triggered . | . . . . . . Construction Impeded 1 | . . . . . 1 Haulers Reinforced . | . . . . . . Active Scanning Responses . | . . . . . . Cargo Convoy Interrupts . | . . . . . . Stealth | -11 -10 -10 -8 -7 -6 --------- Run | Yrd Mat Sub Mat Fac Fac Distress Signals 2 | . 1 . 1 . . Communications Jammed . | . . . . . . Distress Signals . | . . . . . . Times Spotted 68 | . 4 2 27 15 20 Peak Tracking Total 9 | . 2 2 6 5 9 Tactical Retreats 3 | . . . 1 . 2 Traps | -11 -10 -10 -8 -7 -6 ------- Run | Yrd Mat Sub Mat Fac Fac Traps Triggered 1 | . . . . . 1 Indirectly . | . . . . . . Trap Hack Attempts . | . . . . . . Triggered . | . . . . . . Disarmed . | . . . . . . Reprogrammed 12 | . . . 12 . . Reused 2 | . . . 2 . . Traps Extracted . | . . . . . . Installed . | . . . . . . Triggered 2 | . . . 2 . . Machines | -11 -10 -10 -8 -7 -6 ---------- Run | Yrd Mat Sub Mat Fac Fac Machines Disabled 24 | . . . 3 8 13 Max in Single Turn 10 | . . . 3 2 10 Garrison Access 2 | . . . 1 1 . Machines Repaired . | . . . . . . Machines Dismantled . | . . . . . . Machines Sabotaged . | . . . . . . Overloaded Fab Kills . | . . . . . . Hacking | -11 -10 -10 -8 -7 -6 --------- Run | Yrd Mat Sub Mat Fac Fac Machines Accessed 11 | . . . 7 2 2 Terminals 9 | . . . 6 1 2 Fabricators . | . . . . . . Repair Stations . | . . . . . . Recycling Units . | . . . . . . Scanalyzers . | . . . . . . Garrison Access 2 | . . . 1 1 . Total Hacks 26 | . . . 20 4 2 Successful 11 | . . . 9 1 1 Failed 15 | . . . 11 3 1 Catastrophic 3 | . . . 1 1 1 Database Lockouts . | . . . . . . Manual . | . . . . . . Terminals 21 | . . . 17 2 2 Fabricators . | . . . . . . Repair Stations . | . . . . . . Recycling Units . | . . . . . . Scanalyzers . | . . . . . . Garrison Access 5 | . . . 3 2 . Terminal Hacks 10 | . . . 8 1 1 Record 1 | . . . 1 . . Open DSF 1 | . . . . . 1 Alert Level 1 | . . . 1 . . Reprogram Traps 2 | . . . 2 . . Dispatch Records 1 | . . . 1 . . Transport Status 1 | . . . 1 . . Reinforcement Status 1 | . . . 1 . . Hauler Manifests 1 | . . . 1 . . Registered Components 1 | . . . . 1 . Fabricator Hacks . | . . . . . . Repair Station Hacks . | . . . . . . Recycling Unit Hacks . | . . . . . . Scanalyzer . | . . . . . . Garrison Access Hacks 1 | . . . 1 . . Seal Access 1 | . . . 1 . . Unauthorized Hacks . | . . . . . . Terminals . | . . . . . . Fabricators . | . . . . . . Repair Stations . | . . . . . . Recycling Units . | . . . . . . Scanalyzers . | . . . . . . Garrison Access . | . . . . . . Data Cores Recovered . | . . . . . . Used . | . . . . . . Hacking Detections 10 | . . . 7 2 1 Full Trace Events 1 | . . . . 1 . Feedback Events . | . . . . . . Feedback Blocked . | . . . . . . Robot Schematics Acquired . | . . . . . . Robots Built . | . . . . . . Authchips . | . . . . . . Time . | . . . . . . Total Robot Build Rating . | . . . . . . Part Schematics Acquired . | . . . . . . Parts Built . | . . . . . . Authchips . | . . . . . . Time . | . . . . . . Total Part Build Rating . | . . . . . . Parts Repaired . | . . . . . . Time . | . . . . . . Parts Recycled . | . . . . . . Recycled Matter . | . . . . . . Retrieved Matter . | . . . . . . Retrieved Components . | . . . . . . Parts Scanalyzed . | . . . . . . Part Schematics Acquired . | . . . . . . Parts Damaged . | . . . . . . Bothacking | -11 -10 -10 -8 -7 -6 ------------ Run | Yrd Mat Sub Mat Fac Fac Used RIF Installer . | . . . . . . Robots Hacked . | . . . . . . Non-combat . | . . . . . . Combat . | . . . . . . Robot Hacks Applied . | . . . . . . Relay Couplers Released 4 | . . . . 4 . Machine Destruction 4 | . . . . 4 . Fabnet Peak Effective % . | . . . . . . Robots Rewired . | . . . . . . Allies Hacked . | . . . . . . Hacks Repelled . | . . . . . . Allies | -11 -10 -10 -8 -7 -6 -------- Run | Yrd Mat Sub Mat Fac Fac Total Allies . | . . . . . . Largest Group . | . . . . . . Highest-Rated Group . | . . . . . . Highest-Rated Ally . | . . . . . . Total Orders . | . . . . . . Ally Attacks . | . . . . . . Total Damage . | . . . . . . Kills . | . . . . . . Allies Corrupted . | . . . . . . Allies Melted . | . . . . . . Intel | -11 -10 -10 -8 -7 -6 ------- Run | Yrd Mat Sub Mat Fac Fac Active Infowar (turns) 614 | . . . . . 614 T.N.C. 613 | . . . . . 613 ECM 4 | . . . . . 4 Robot Analysis Total . | . . . . . . Derelict Logs Recovered 1 | . . 1 . . . Drone Launches . | . . . . . . Drone Recoveries . | . . . . . . Exploration | -11 -10 -10 -8 -7 -6 ------------- Run | Yrd Mat Sub Mat Fac Fac Turns Passed 2518 | 76 200 249 846 426 721 Spaces Moved 1210 | 46 97 155 356 170 386 Core 263 | 18 . . 3 5 237 Treads 816 | 28 97 155 353 34 149 Legs 131 | . . . . 131 . Wheels . | . . . . . . Hover . | . . . . . . Flight . | . . . . . . Fastest Speed 50 | 50 160 160 160 123 50 Average Speed 172 | 128 160 160 179 209 161 Slowest Speed 650 | 160 160 160 650 650 600 Overloaded Moves . | . . . . . . Propulsion Burnouts . | . . . . . . Robots Hopped . | . . . . . . Potential Cave-ins . | . . . . . . Cave-ins Triggered . | . . . . . . Exploration Rate (%) 18 | 4 27 16 44 6 12 Regions Visited 5 Branch Regions 1 Pre-discovered Areas 1 | . . 1 . . . Known Exits Taken 2 | . . . 1 1 . Unknown Exits Taken 3 | 1 1 1 . . . Scrap Searched . | . . . . . . Spaces Dug . | . . . . . . Terrain Destroyed 282 | . . . 29 156 97 Melee . | . . . . . . Projectile 3 | . . . 1 . 2 AOE 279 | . . . 28 156 95 Terrain Rammed . | . . . . . . Walls Destroyed . | . . . . . . Machines Disabled . | . . . . . . Actions | -11 -10 -10 -8 -7 -6 --------- Run | Yrd Mat Sub Mat Fac Fac Total 1449 | 60 123 156 455 205 450 Wait 57 | . 12 . 24 2 19 Move 1205 | 45 96 154 355 169 386 Hop . | . . . . . . Pick Up 26 | 7 1 2 12 2 2 Fast Attach 11 | 1 . . 3 5 2 Attach 19 | 4 1 . 4 4 6 Detach 1 | . . . . . 1 Swap 2 | . . . 2 . . Drop 4 | . . . . 3 1 Fire 120 | 3 10 . 55 19 33 Melee . | . . . . . . Ram . | . . . . . . Kick 1 | . . . . 1 . Crush 3 | . 3 . . . . Escape Stasis . | . . . . . . Rewire . | . . . . . . Trap . | . . . . . . Miscellaneous . | . . . . . . Route ------- -11/Scrapyard -10/Materials (discovered 2 exits: [*Mat] / [*Sub]) -10/Subcaves -8/Materials (discovered 3 exits: *Fac x3) -7/Factory -6/Factory History --------- Turn | Location | Event 3 | -11/Scrapyard | Discovered new exit (range 16) 77 | -11/Scrapyard | Entered Materials 78 | -10/Materials | Met a group of wandering Federalists 201 | -10/Materials | Discovered new exit (range 15) 264 | -10/Materials | Discovered new exit (range 9) 277 | -10/Materials | Entered Subcaves 278 | -10/Subcaves | Continued accompanying wandering Federalists (3) 278 | -10/Subcaves | Approached by a straggling Scientist 290 | -10/Subcaves | Learned location of Zion (-6) 290 | -10/Subcaves | Met a Zionite searching for "candidates" 301 | -10/Subcaves | Build established: Mutant 331 | -10/Subcaves | Shifting Twisted Machinery released Sub. Shrapnel Launcher 467 | -10/Subcaves | Learned 8 Materials zone layouts 513 | -10/Subcaves | Discovered new exit (range 5) 526 | -10/Subcaves | Entered Materials 526 | -8/Materials | Evolved 4 slots: Propulsion x2, Utility x2 527 | -8/Materials | Identified exit to Factory 1329 | -8/Materials | Discovered exit to Factory (range 15) 1355 | -8/Materials | Core integrity fell below 50% 1372 | -8/Materials | Entered Factory 1372 | -7/Factory | Evolved 2 slots: Propulsion x1, Utility x1 1470 | -7/Factory | Garrison activated, responded to threat 1522 | -7/Factory | Lost 5 parts (2n1u2w) 1694 | -7/Factory | Discovered new exit (range 8) 1767 | -7/Factory | Identified exit to Factory 1798 | -7/Factory | Entered another Factory area 1798 | -6/Factory | Evolved 2 slots: Utility x2 2205 | -6/Factory | Garrison activated, responded to threat 2277 | -6/Factory | Lost 3 parts (1p1n1w) 2413 | -6/Factory | Released all parts (7) 2436 | -6/Factory | Core integrity fell below 50% 2479 | -6/Factory | Core integrity fell below 20% 2498 | -6/Factory | First assault squad dispatched 2519 | -6/Factory | Destroyed by P-60 Hacker with Shock Rifle Last Messages --------------- Released Lrg. Storage Unit. Released Sml. Storage Unit. Released Imp. Signal Interpreter. Released Transport Network Coupler. Released Adv. ECM Suite. Released Adv. Signal Interpreter. NJK4OS=| Acquired 19 matter. U-05 Engineer lays Concrete. Connecting with DSF Access... Dropped Sub. Shrapnel Launcher. ALERT: Unidentified disturbance in Zone 6E, multiple assault carriers dispatched. Acquired Wheel. System corrupted: Component data lost. Triggered Alarm Trap. An alarm sounds. ALERT: Alarm triggered, dispatching investigation squad. Door malfunctions. Map ----- +----------------------------------------------------+ | ?????????????????????????????????????????????????? | | ?????????????????????????????????????????????????? | | ?????????????????????????????????????????????????? | | ?????????????????????????????????????????????????? | | ?????????????????????????????????????????????????? | | ?????????????????????????????????????????????????? | | ?????????????????????????????????????????????????? | | ?????????????????????????????????????????????????? | | ?????????????????????????????????????????????????? | | ?????????????????????????????????????????????????? | | ?????????????????????????????????????????????????? | | ?????????????????????????????????????????????????? | | ?????????????????????????????????????????????????? | | ?????????????????????????????????????????????????? | | ?????????????????????????????????????????????????? | | ?????????????????????????????????????????????????? | | ?????????????????????????????????????????????????? | | ?????????????????????????????????????????????????? | | ?????????????????????????????????????????????????? | | ????????????????????????????#????????????????????? | | ??????????????????????????? #????????????????????? | | ??????????????????????????? #????????????????????? | | ???????????##??######?????? #????????????????????? | | ???????????# ####### #????????????????????? | | ???????????# """ # #????????????????????? | | ???????????# """ # @ #????????????????????? | | ???????????# """ # #????????????????????? | | ???????????# # #????????????????????? | | ???????????# """ # #????????????????????? | | ???????????# """ # ### ???????????? | | ???????????# """ k ????????????? | | ???????????# # #### ????????????? | | ???????????########## #?????? #????????????? | | ???????????????????# #?????????????????????? | | ???????????????????# #?????????????????????? | | ???????????????????# #??????????????????#### | | ???????????????????####### #??????????????????# | | ?????????????????????????# #??????????????????# | | ?????????????????????????# #??????????????????# " | | ?????????????????????????# #??????????????????# " | | ??????????????"""????????#p#??????????????????# | | ??????????????"Y ??????# #??????????????????# F | | ????????????# """ ????# ############???????# " | | ????????????# ??# """"" #???????# | | ??????????????? # """F"" #???????# | | ??????????????????" """ / """!"" #???????# | | ??????????????????" """ # !!! #???????# | | ??????????????????" """ + #???????# | | ?????????????????"" "" # #??####?# | | ?????????????????"" ""??#]] ####T ### | +----------------------------------------------------+ Best States ------------- Heat Dissipation 37 Energy Generation 18 Energy Capacity 240 Matter Stores 300 Matter Capacity 300 Sight Range 16 Terrain Scan Density 10 ECM Strength 2 Armor Coverage 225 Evasion (%) 55 Recoil Reduction 2 Offensive Hacking 10 Item Schematics ----------------- None Robot Schematics ------------------ None Fabricated ------------ Nothing Repaired ---------- Nothing Alien Tech Used ----------------- None Achievements -------------- It Was An Accident, I Swear Challenges ------------ None Game ------ Seed MakeshiftProtonMultitool Manual? 0 Play Time 00:40:17 Cumulative 9.4 hours Start 2025.10.16 @ 20:22:37 End 2025.10.16 @ 21:06:57 Sessions 3 Manual Loads 0 Difficulty Rogue Special Mode None Game No. 8 Rogue 1 Adventurer 0 Explorer 7 Win Type - Total 0 Types 0/0/0/0/0/0/0/0/0/0 Lore% 9 Gallery% 13 Achievement% 17 Wizard Run 0 Options --------- Layout 0 ASCII 0 Keyboard 0 Movement Mouse Keybinds 0 Fullscreen 1 Font 24/Smallcaps Map View 113x50 Zoom Use 0% Tactical HUD 0 Map Filters NONE Filters NONE Steam 1 RUN: f09fca41-834f-46e7-9a78-833e93c79042